{"text_format":"1","workbook":"xlsx","n_sheets":2,"sheets":["data","All_Data"],"not_rendered":{"charts":0,"images":7,"macros":1,"external_links":0,"defined_names":2,"comments":0,"pivot_tables":0},"unopened":[],"bounds":{"document_bytes":16777216,"sheet_cells":100000,"rows_first":2000,"rows_last":500,"rows_between":2000,"halvings":0,"cell_chars":16384,"cell_head_chars":4096},"cells_cut":0,"cells_raw":0,"read":"whole","date_system":"1900"}

{"sheet":"data","index":0,"n_rows":28,"n_cols":12,"rows_kept":28,"cut":false,"hidden":false,"merged":[[28,3,28,7],[27,9,27,10],[27,1,27,7],[3,1,3,11],[1,1,1,11],[27,11,27,12]]}
[]
[null,"قسم الحركة"]
[]
[null,"تقــرير بيانات قسم الحركة"]
[]
[]
[null,null,null,"no1",null,"كتابة الكود",null,null,null,"رقم الإقامة",null,208561110]
[]
[]
[null,"اسم الموظف 2",":",{"$f":"IFERROR(VLOOKUP(D7,Alldata[],2,0),\"0\")","v":"ابو سفيان قادر"},null,"رقم الجوال 5",":",{"$f":"IFERROR(VLOOKUP(D7,data,5,0),\"0\")","v":"0554348931"},null,"رقم الاقامة 4",":",{"$f":"IFERROR(VLOOKUP(D7,data,4,0),\"0\")","v":2394531970}]
[]
[null,"الكود 1",":",{"$f":"IFERROR(VLOOKUP(D7,data,1,0),\"0\")","v":"NO1"},null,"وصف الاصل 7",":",{"$f":"IFERROR(VLOOKUP(D7,data,7,0),\"0\")","v":"نيسان / غمارة"},null,"الرقم التسلسلي 3",":",{"$f":"IFERROR(VLOOKUP(D7,data,3,0),\"0\")","v":208561110}]
[]
[null,"رقم اللوحة 10",":",{"$f":"IFERROR(VLOOKUP(D7,data,10,0),\"0\")","v":"ا ك ك  1293"},null,"اللون 8",":",{"$f":"IFERROR(VLOOKUP(D7,data,8,0),\"0\")","v":2012},null,"رقم الهيكل 10",":",{"$f":"IFERROR(VLOOKUP(D7,Alldata[],11,0),\"0\")","v":"MNTDD22S7C6002418"}]
[]
[null,"انتهاء الفحص 14",":",{"$f":"IFERROR(VLOOKUP(D7,Alldata[],14,0),\"0\")","v":"26/03/1441"},null,"حالة الفحص 15",null,{"$f":"IFERROR(VLOOKUP(D7,Alldata[],15,0),\"0\")","v":"منتهي"},null,"الموديل 7",":",{"$f":"IFERROR(VLOOKUP(D7,data,8,0),\"0\")","v":2012}]
[]
[null,"انتهاء الاستمارة 16",":",{"$f":"IFERROR(VLOOKUP(D7,Alldata[],16,0),\"0\")","v":"02/02/1442"},null,"حالة الاستمارة 17",":",{"$f":"IFERROR(VLOOKUP(D7,Alldata[],17,0),\"0\")","v":"منتهي"},null,"المالك 11",":",{"$f":"IFERROR(VLOOKUP(D7,Alldata[],12,0),\"0\")","v":7009429445}]
[]
[null,"انتهاء التأمين 18",":",{"$f":"IFERROR(VLOOKUP(D7,Alldata[],18,0),\"0\")","v":"2023-02-08"},null,"حالة التأمين 19",":",{"$f":"IFERROR(VLOOKUP(D7,Alldata[],19,0),\"0\")","v":"منتهي"},null,"انتهاء التفويض 22",":",{"$f":"IFERROR(VLOOKUP(D7,Alldata[],23,0),\"0\")","v":"14-03-1445"}]
[]
[null,"انتهاء كارت التشغيل20",":",{"$f":"IFERROR(VLOOKUP(D7,Alldata[],20,0),\"0\")","v":"لا يوجد"},null,"حالة كارت التشغيل 21",":",{"$f":"IFERROR(VLOOKUP(D7,Alldata[],21,0),\"0\")","v":"منتهي"},null,"الموقع 6",":",{"$f":"IFERROR(VLOOKUP(D7,Alldata[],6,0),\"0\")","v":"صيانة 806"}]
[]
[null,"الترخيص 13",":",{"$f":"IFERROR(VLOOKUP(D7,Alldata[],13,0),\"0\")","v":"نقل خاص"},null,"المهنة 24",":",{"$f":"IFERROR(VLOOKUP(D7,Alldata[],24,0),\"0\")","v":"مساح"},null,"جهاز التتبع 26",":",{"$f":"IFERROR(VLOOKUP(D7,Alldata[],26,0),\"0\")","v":"يوجد"}]
[]
[null,"ملاحظات 27",":",{"$f":"IFERROR(VLOOKUP(D7,Alldata[],27,0),\"0\")","v":"إجازة"},null,"حالة الموظف26",":",{"$f":"IFERROR(VLOOKUP(D7,Alldata[],25,0),\"0\")","v":"على الكفالة"},null,"رخصة القيادة 21",":",{"$f":"IFERROR(VLOOKUP(D7,Alldata[],22,0),\"0\")","v":"خاصة"}]
[]
[null,null,null,null,null,null,null,null,null,"اعتماد مسئول الحركة :"]

{"sheet":"All_Data","index":1,"n_rows":149,"n_cols":52,"rows_kept":149,"cut":false,"hidden":false,"merged":[[1,0,1,7],[1,11,1,27]]}
[]
["بيانات السيارات",null,null,null,null,null,null,null,null,null,null,{"$f":"TODAY()","v":"2022-10-25"}]
[null,1,2,3,4,5,6,7,8,9,10,11,12,13,14,15,16,17,18,19,20,21,22,23,24,25,26,27]
[null,"كود المعدة","اسم المستلم","الرقم التسلسلي","رقم الإقامة","رقم الجوال","الموقع","وصف الاصل","الموديل","اللون","رقم اللوحة","رقم الهيكل","المالك","الترخيص","انتهاء الفحص","حالة الفحص","انتهاء الاستمارة","حالة الاستمارة","انتهاء التأمين","حالة التأمين","انتهاء كارت التشغيل","حالة كارت التشغيل","رخصة القيادة","انتهاء التفويض","المهنة","حالة الموظف","جهاز التتبع","ملاحظات",null,null,null,null,null,null,null,null,null,null,null,null,null,null,"الفحص ميلادي","المتبقي على الفحص","الاستمارة ميلادي","المتبقي على الاستمارة","التأمين ميلادي","المتبقي على التأمين","الرخصة ميلادي","المتبقي على رخصة القيادة","التفويض ميلادي","المتبقي على التفويض"]
[null,"NO1","ابو سفيان قادر",208561110,2394531970,"0554348931","صيانة 806","نيسان / غمارة",2012,"ابيض","ا ك ك  1293","MNTDD22S7C6002418",7009429445,"نقل خاص","26/03/1441",{"$f":"IF(BF3<1,\"منتهي\",IF(BF3<30,\"تجديد\",IF(BF3=\"\",\"\",\"ساري\")))","v":"منتهي"},"02/02/1442",{"$f":"IF(BG3<1,\"منتهي\",IF(BG3<30,\"تجديد\",IF(BG3=\"\",\"\",\"ساري\")))","v":"منتهي"},"2023-02-08",{"$f":"IFERROR(IF(BH3<1,\"منتهي\",IF(BH3<30,\"تجديد\",\"ساري\")),\"\")","v":"منتهي"},"لا يوجد",{"$f":"IFERROR(IF(BH3<1,\"منتهي\",IF(BH3<30,\"تجديد\",\"ساري\")),\"\")","v":"منتهي"},"خاصة","14-03-1445","مساح","على الكفالة","يوجد","إجازة",null,null,null,null,null,null,null,null,null,null,null,null,null,null,{"$f":"ConvertDate(O5)","v":"23/11/2019"},{"$f":"L2-AS5","v":766},{"$f":"ConvertDate(Q5)","v":"19/09/2020"},"",{"$f":"ConvertDate(S5)","v":"20/04/2002"},"",null,"",{"$f":"ConvertDate(X5)","v":"28/09/2023"},""]
[null,null,null,null,null,null,null,null,null,null,null,null,null,null,null,"منتهي",null,"منتهي",null,"منتهي",null,"منتهي",null,null,null,null,null,null,null,null,null,null,null,null,null,null,null,null,null,null,null,null,{"$f":"ConvertDate(O6)","v":{"$error":"#VALUE!"}},{"$f":"L3-AS6","v":{"$error":"#VALUE!"}},{"$f":"ConvertDate(Q6)","v":{"$error":"#VALUE!"}},"",{"$f":"ConvertDate(S6)","v":{"$error":"#VALUE!"}},"",null,"",{"$f":"ConvertDate(X6)","v":{"$error":"#VALUE!"}},""]
[null,null,null,null,null,null,null,null,null,null,null,null,null,null,null,"منتهي",null,"منتهي",null,"منتهي",null,"منتهي",null,null,null,null,null,null,null,null,null,null,null,null,null,null,null,null,null,null,null,null,{"$f":"ConvertDate(O7)","v":{"$error":"#VALUE!"}},{"$f":"L4-AS7","v":{"$error":"#VALUE!"}},{"$f":"ConvertDate(Q7)","v":{"$error":"#VALUE!"}},"",{"$f":"ConvertDate(S7)","v":{"$error":"#VALUE!"}},"",null,"",{"$f":"ConvertDate(X7)","v":{"$error":"#VALUE!"}},""]
[null,null,null,null,null,null,null,null,null,null,null,null,null,null,null,"منتهي",null,"منتهي",null,"منتهي",null,"منتهي",null,null,null,null,null,null,null,null,null,null,null,null,null,null,null,null,null,null,null,null,{"$f":"ConvertDate(O8)","v":{"$error":"#VALUE!"}},{"$f":"L5-AS8","v":{"$error":"#VALUE!"}},{"$f":"ConvertDate(Q8)","v":{"$error":"#VALUE!"}},"",{"$f":"ConvertDate(S8)","v":{"$error":"#VALUE!"}},"",null,"",{"$f":"ConvertDate(X8)","v":{"$error":"#VALUE!"}},""]
[null,null,null,null,null,null,null,null,null,null,null,null,null,null,null,"منتهي",null,"منتهي",null,"منتهي",null,"منتهي",null,null,null,null,null,null,null,null,null,null,null,null,null,null,null,null,null,null,null,null,{"$f":"ConvertDate(O9)","v":{"$error":"#VALUE!"}},{"$f":"L6-AS9","v":{"$error":"#VALUE!"}},{"$f":"ConvertDate(Q9)","v":{"$error":"#VALUE!"}},"",{"$f":"ConvertDate(S9)","v":{"$error":"#VALUE!"}},"",null,"",{"$f":"ConvertDate(X9)","v":{"$error":"#VALUE!"}},""]
[null,null,null,null,null,null,null,null,null,null,null,null,null,null,null,"منتهي",null,"منتهي",null,"منتهي",null,"منتهي",null,null,null,null,null,null,null,null,null,null,null,null,null,null,null,null,null,null,null,null,{"$f":"ConvertDate(O10)","v":{"$error":"#VALUE!"}},{"$f":"L7-AS10","v":{"$error":"#VALUE!"}},{"$f":"ConvertDate(Q10)","v":{"$error":"#VALUE!"}},"",{"$f":"ConvertDate(S10)","v":{"$error":"#VALUE!"}},"",null,"",{"$f":"ConvertDate(X10)","v":{"$error":"#VALUE!"}},""]
[null,null,null,null,null,null,null,null,null,null,null,null,null,null,null,"منتهي",null,"منتهي",null,"منتهي",null,"منتهي",null,null,null,null,null,null,null,null,null,null,null,null,null,null,null,null,null,null,null,null,{"$f":"ConvertDate(O11)","v":{"$error":"#VALUE!"}},{"$f":"L8-AS11","v":{"$error":"#VALUE!"}},{"$f":"ConvertDate(Q11)","v":{"$error":"#VALUE!"}},"",{"$f":"ConvertDate(S11)","v":{"$error":"#VALUE!"}},"",null,"",{"$f":"ConvertDate(X11)","v":{"$error":"#VALUE!"}},""]
[null,null,null,null,null,null,null,null,null,null,null,null,null,null,null,"منتهي",null,"منتهي",null,"منتهي",null,"منتهي",null,null,null,null,null,null,null,null,null,null,null,null,null,null,null,null,null,null,null,null,{"$f":"ConvertDate(O12)","v":{"$error":"#VALUE!"}},{"$f":"L9-AS12","v":{"$error":"#VALUE!"}},{"$f":"ConvertDate(Q12)","v":{"$error":"#VALUE!"}},"",{"$f":"ConvertDate(S12)","v":{"$error":"#VALUE!"}},"",null,"",{"$f":"ConvertDate(X12)","v":{"$error":"#VALUE!"}},""]
[null,null,null,null,null,null,null,null,null,null,null,null,null,null,null,"منتهي",null,"منتهي",null,"منتهي",null,"منتهي",null,null,null,null,null,null,null,null,null,null,null,null,null,null,null,null,null,null,null,null,{"$f":"ConvertDate(O13)","v":{"$error":"#VALUE!"}},{"$f":"L10-AS13","v":{"$error":"#VALUE!"}},{"$f":"ConvertDate(Q13)","v":{"$error":"#VALUE!"}},"",{"$f":"ConvertDate(S13)","v":{"$error":"#VALUE!"}},"",null,"",{"$f":"ConvertDate(X13)","v":{"$error":"#VALUE!"}},""]
[null,null,null,null,null,null,null,null,null,null,null,null,null,null,null,"منتهي",null,"منتهي",null,"منتهي",null,"منتهي",null,null,null,null,null,null,null,null,null,null,null,null,null,null,null,null,null,null,null,null,{"$f":"ConvertDate(O14)","v":{"$error":"#VALUE!"}},{"$f":"L11-AS14","v":{"$error":"#VALUE!"}},{"$f":"ConvertDate(Q14)","v":{"$error":"#VALUE!"}},"",{"$f":"ConvertDate(S14)","v":{"$error":"#VALUE!"}},"",null,"",{"$f":"ConvertDate(X14)","v":{"$error":"#VALUE!"}},""]
[null,null,null,null,null,null,null,null,null,null,null,null,null,null,null,"منتهي",null,"منتهي",null,"منتهي",null,"منتهي",null,null,null,null,null,null,null,null,null,null,null,null,null,null,null,null,null,null,null,null,{"$f":"ConvertDate(O15)","v":{"$error":"#VALUE!"}},{"$f":"L12-AS15","v":{"$error":"#VALUE!"}},{"$f":"ConvertDate(Q15)","v":{"$error":"#VALUE!"}},"",{"$f":"ConvertDate(S15)","v":{"$error":"#VALUE!"}},"",null,"",{"$f":"ConvertDate(X15)","v":{"$error":"#VALUE!"}},""]
[null,null,null,null,null,null,null,null,null,null,null,null,null,null,null,"منتهي",null,"منتهي",null,"منتهي",null,"منتهي",null,null,null,null,null,null,null,null,null,null,null,null,null,null,null,null,null,null,null,null,{"$f":"ConvertDate(O16)","v":{"$error":"#VALUE!"}},{"$f":"L13-AS16","v":{"$error":"#VALUE!"}},{"$f":"ConvertDate(Q16)","v":{"$error":"#VALUE!"}},"",{"$f":"ConvertDate(S16)","v":{"$error":"#VALUE!"}},"",null,"",{"$f":"ConvertDate(X16)","v":{"$error":"#VALUE!"}},""]
[null,null,null,null,null,null,null,null,null,null,null,null,null,null,null,"منتهي",null,"منتهي",null,"منتهي",null,"منتهي",null,null,null,null,null,null,null,null,null,null,null,null,null,null,null,null,null,null,null,null,{"$f":"ConvertDate(O17)","v":{"$error":"#VALUE!"}},{"$f":"L14-AS17","v":{"$error":"#VALUE!"}},{"$f":"ConvertDate(Q17)","v":{"$error":"#VALUE!"}},"",{"$f":"ConvertDate(S17)","v":{"$error":"#VALUE!"}},"",null,"",{"$f":"ConvertDate(X17)","v":{"$error":"#VALUE!"}},""]
[null,null,null,null,null,null,null,null,null,null,null,null,null,null,null,"منتهي",null,"منتهي",null,"منتهي",null,"منتهي",null,null,null,null,null,null,null,null,null,null,null,null,null,null,null,null,null,null,null,null,{"$f":"ConvertDate(O18)","v":{"$error":"#VALUE!"}},{"$f":"L15-AS18","v":{"$error":"#VALUE!"}},{"$f":"ConvertDate(Q18)","v":{"$error":"#VALUE!"}},"",{"$f":"ConvertDate(S18)","v":{"$error":"#VALUE!"}},"",null,"",{"$f":"ConvertDate(X18)","v":{"$error":"#VALUE!"}},""]
[null,null,null,null,null,null,null,null,null,null,null,null,null,null,null,"منتهي",null,"منتهي",null,"منتهي",null,"منتهي",null,null,null,null,null,null,null,null,null,null,null,null,null,null,null,null,null,null,null,null,{"$f":"ConvertDate(O19)","v":{"$error":"#VALUE!"}},{"$f":"L16-AS19","v":{"$error":"#VALUE!"}},{"$f":"ConvertDate(Q19)","v":{"$error":"#VALUE!"}},"",{"$f":"ConvertDate(S19)","v":{"$error":"#VALUE!"}},"",null,"",{"$f":"ConvertDate(X19)","v":{"$error":"#VALUE!"}},""]
[null,null,null,null,null,null,null,null,null,null,null,null,null,null,null,"منتهي",null,"منتهي",null,"منتهي",null,"منتهي",null,null,null,null,null,null,null,null,null,null,null,null,null,null,null,null,null,null,null,null,{"$f":"ConvertDate(O20)","v":{"$error":"#VALUE!"}},{"$f":"L17-AS20","v":{"$error":"#VALUE!"}},{"$f":"ConvertDate(Q20)","v":{"$error":"#VALUE!"}},"",{"$f":"ConvertDate(S20)","v":{"$error":"#VALUE!"}},"",null,"",{"$f":"ConvertDate(X20)","v":{"$error":"#VALUE!"}},""]
[null,null,null,null,null,null,null,null,null,null,null,null,null,null,null,"منتهي",null,"منتهي",null,"منتهي",null,"منتهي",null,null,null,null,null,null,null,null,null,null,null,null,null,null,null,null,null,null,null,null,{"$f":"ConvertDate(O21)","v":{"$error":"#VALUE!"}},{"$f":"L18-AS21","v":{"$error":"#VALUE!"}},{"$f":"ConvertDate(Q21)","v":{"$error":"#VALUE!"}},"",{"$f":"ConvertDate(S21)","v":{"$error":"#VALUE!"}},"",null,"",{"$f":"ConvertDate(X21)","v":{"$error":"#VALUE!"}},""]
[null,null,null,null,null,null,null,null,null,null,null,null,null,null,null,"منتهي",null,"منتهي",null,"منتهي",null,"منتهي",null,null,null,null,null,null,null,null,null,null,null,null,null,null,null,null,null,null,null,null,{"$f":"ConvertDate(O22)","v":{"$error":"#VALUE!"}},{"$f":"L19-AS22","v":{"$error":"#VALUE!"}},{"$f":"ConvertDate(Q22)","v":{"$error":"#VALUE!"}},"",{"$f":"ConvertDate(S22)","v":{"$error":"#VALUE!"}},"",null,"",{"$f":"ConvertDate(X22)","v":{"$error":"#VALUE!"}},""]
[null,null,null,null,null,null,null,null,null,null,null,null,null,null,null,"منتهي",null,"منتهي",null,"منتهي",null,"منتهي",null,null,null,null,null,null,null,null,null,null,null,null,null,null,null,null,null,null,null,null,{"$f":"ConvertDate(O23)","v":{"$error":"#VALUE!"}},{"$f":"L20-AS23","v":{"$error":"#VALUE!"}},{"$f":"ConvertDate(Q23)","v":{"$error":"#VALUE!"}},"",{"$f":"ConvertDate(S23)","v":{"$error":"#VALUE!"}},"",null,"",{"$f":"ConvertDate(X23)","v":{"$error":"#VALUE!"}},""]
[null,null,null,null,null,null,null,null,null,null,null,null,null,null,null,"منتهي",null,"منتهي",null,"منتهي",null,"منتهي",null,null,null,null,null,null,null,null,null,null,null,null,null,null,null,null,null,null,null,null,{"$f":"ConvertDate(O24)","v":{"$error":"#VALUE!"}},{"$f":"L21-AS24","v":{"$error":"#VALUE!"}},{"$f":"ConvertDate(Q24)","v":{"$error":"#VALUE!"}},"",{"$f":"ConvertDate(S24)","v":{"$error":"#VALUE!"}},"",null,"",{"$f":"ConvertDate(X24)","v":{"$error":"#VALUE!"}},""]
[null,null,null,null,null,null,null,null,null,null,null,null,null,null,null,"منتهي",null,"منتهي",null,"منتهي",null,"منتهي",null,null,null,null,null,null,null,null,null,null,null,null,null,null,null,null,null,null,null,null,{"$f":"ConvertDate(O25)","v":{"$error":"#VALUE!"}},{"$f":"L22-AS25","v":{"$error":"#VALUE!"}},{"$f":"ConvertDate(Q25)","v":{"$error":"#VALUE!"}},"",{"$f":"ConvertDate(S25)","v":{"$error":"#VALUE!"}},"",null,"",{"$f":"ConvertDate(X25)","v":{"$error":"#VALUE!"}},""]
[null,null,null,null,null,null,null,null,null,null,null,null,null,null,null,"منتهي",null,"منتهي",null,"منتهي",null,"منتهي",null,null,null,null,null,null,null,null,null,null,null,null,null,null,null,null,null,null,null,null,{"$f":"ConvertDate(O26)","v":{"$error":"#VALUE!"}},{"$f":"L23-AS26","v":{"$error":"#VALUE!"}},{"$f":"ConvertDate(Q26)","v":{"$error":"#VALUE!"}},"",{"$f":"ConvertDate(S26)","v":{"$error":"#VALUE!"}},"",null,"",{"$f":"ConvertDate(X26)","v":{"$error":"#VALUE!"}},""]
[null,null,null,null,null,null,null,null,null,null,null,null,null,null,null,"منتهي",null,"منتهي",null,"منتهي",null,"منتهي",null,null,null,null,null,null,null,null,null,null,null,null,null,null,null,null,null,null,null,null,{"$f":"ConvertDate(O27)","v":{"$error":"#VALUE!"}},{"$f":"L24-AS27","v":{"$error":"#VALUE!"}},{"$f":"ConvertDate(Q27)","v":{"$error":"#VALUE!"}},"",{"$f":"ConvertDate(S27)","v":{"$error":"#VALUE!"}},"",null,"",{"$f":"ConvertDate(X27)","v":{"$error":"#VALUE!"}},""]
[null,null,null,null,null,null,null,null,null,null,null,null,null,null,null,"منتهي",null,"منتهي",null,"منتهي",null,"منتهي",null,null,null,null,null,null,null,null,null,null,null,null,null,null,null,null,null,null,null,null,{"$f":"ConvertDate(O28)","v":{"$error":"#VALUE!"}},{"$f":"L25-AS28","v":{"$error":"#VALUE!"}},{"$f":"ConvertDate(Q28)","v":{"$error":"#VALUE!"}},"",{"$f":"ConvertDate(S28)","v":{"$error":"#VALUE!"}},"",null,"",{"$f":"ConvertDate(X28)","v":{"$error":"#VALUE!"}},""]
[null,null,null,null,null,null,null,null,null,null,null,null,null,null,null,"منتهي",null,"منتهي",null,"منتهي",null,"منتهي",null,null,null,null,null,null,null,null,null,null,null,null,null,null,null,null,null,null,null,null,{"$f":"ConvertDate(O29)","v":{"$error":"#VALUE!"}},{"$f":"L26-AS29","v":{"$error":"#VALUE!"}},{"$f":"ConvertDate(Q29)","v":{"$error":"#VALUE!"}},"",{"$f":"ConvertDate(S29)","v":{"$error":"#VALUE!"}},"",null,"",{"$f":"ConvertDate(X29)","v":{"$error":"#VALUE!"}},""]
[null,null,null,null,null,null,null,null,null,null,null,null,null,null,null,"منتهي",null,"منتهي",null,"منتهي",null,"منتهي",null,null,null,null,null,null,null,null,null,null,null,null,null,null,null,null,null,null,null,null,{"$f":"ConvertDate(O30)","v":{"$error":"#VALUE!"}},{"$f":"L27-AS30","v":{"$error":"#VALUE!"}},{"$f":"ConvertDate(Q30)","v":{"$error":"#VALUE!"}},"",{"$f":"ConvertDate(S30)","v":{"$error":"#VALUE!"}},"",null,"",{"$f":"ConvertDate(X30)","v":{"$error":"#VALUE!"}},""]
[null,null,null,null,null,null,null,null,null,null,null,null,null,null,null,"منتهي",null,"منتهي",null,"منتهي",null,"منتهي",null,null,null,null,null,null,null,null,null,null,null,null,null,null,null,null,null,null,null,null,{"$f":"ConvertDate(O31)","v":{"$error":"#VALUE!"}},{"$f":"L28-AS31","v":{"$error":"#VALUE!"}},{"$f":"ConvertDate(Q31)","v":{"$error":"#VALUE!"}},"",{"$f":"ConvertDate(S31)","v":{"$error":"#VALUE!"}},"",null,"",{"$f":"ConvertDate(X31)","v":{"$error":"#VALUE!"}},""]
[null,null,null,null,null,null,null,null,null,null,null,null,null,null,null,"منتهي",null,"منتهي",null,"منتهي",null,"منتهي",null,null,null,null,null,null,null,null,null,null,null,null,null,null,null,null,null,null,null,null,{"$f":"ConvertDate(O32)","v":{"$error":"#VALUE!"}},{"$f":"L29-AS32","v":{"$error":"#VALUE!"}},{"$f":"ConvertDate(Q32)","v":{"$error":"#VALUE!"}},"",{"$f":"ConvertDate(S32)","v":{"$error":"#VALUE!"}},"",null,"",{"$f":"ConvertDate(X32)","v":{"$error":"#VALUE!"}},""]
[null,null,null,null,null,null,null,null,null,null,null,null,null,null,null,"منتهي",null,"منتهي",null,"منتهي",null,"منتهي",null,null,null,null,null,null,null,null,null,null,null,null,null,null,null,null,null,null,null,null,{"$f":"ConvertDate(O33)","v":{"$error":"#VALUE!"}},{"$f":"L30-AS33","v":{"$error":"#VALUE!"}},{"$f":"ConvertDate(Q33)","v":{"$error":"#VALUE!"}},"",{"$f":"ConvertDate(S33)","v":{"$error":"#VALUE!"}},"",null,"",{"$f":"ConvertDate(X33)","v":{"$error":"#VALUE!"}},""]
[null,null,null,null,null,null,null,null,null,null,null,null,null,null,null,"منتهي",null,"منتهي",null,"منتهي",null,"منتهي",null,null,null,null,null,null,null,null,null,null,null,null,null,null,null,null,null,null,null,null,{"$f":"ConvertDate(O34)","v":{"$error":"#VALUE!"}},{"$f":"L31-AS34","v":{"$error":"#VALUE!"}},{"$f":"ConvertDate(Q34)","v":{"$error":"#VALUE!"}},"",{"$f":"ConvertDate(S34)","v":{"$error":"#VALUE!"}},"",null,"",{"$f":"ConvertDate(X34)","v":{"$error":"#VALUE!"}},""]
[null,null,null,null,null,null,null,null,null,null,null,null,null,null,null,"منتهي",null,"منتهي",null,"منتهي",null,"منتهي",null,null,null,null,null,null,null,null,null,null,null,null,null,null,null,null,null,null,null,null,{"$f":"ConvertDate(O35)","v":{"$error":"#VALUE!"}},{"$f":"L32-AS35","v":{"$error":"#VALUE!"}},{"$f":"ConvertDate(Q35)","v":{"$error":"#VALUE!"}},"",{"$f":"ConvertDate(S35)","v":{"$error":"#VALUE!"}},"",null,"",{"$f":"ConvertDate(X35)","v":{"$error":"#VALUE!"}},""]
[null,null,null,null,null,null,null,null,null,null,null,null,null,null,null,"منتهي",null,"منتهي",null,"منتهي",null,"منتهي",null,null,null,null,null,null,null,null,null,null,null,null,null,null,null,null,null,null,null,null,{"$f":"ConvertDate(O36)","v":{"$error":"#VALUE!"}},{"$f":"L33-AS36","v":{"$error":"#VALUE!"}},{"$f":"ConvertDate(Q36)","v":{"$error":"#VALUE!"}},"",{"$f":"ConvertDate(S36)","v":{"$error":"#VALUE!"}},"",null,"",{"$f":"ConvertDate(X36)","v":{"$error":"#VALUE!"}},""]
[null,null,null,null,null,null,null,null,null,null,null,null,null,null,null,{"$f":"IF(BF35<1,\"منتهي\",IF(BF35<30,\"تجديد\",IF(BF35=\"\",\"\",\"ساري\")))","v":"منتهي"},null,{"$f":"IF(BG35<1,\"منتهي\",IF(BG35<30,\"تجديد\",IF(BG35=\"\",\"\",\"ساري\")))","v":"منتهي"},null,{"$f":"IFERROR(IF(BH35<1,\"منتهي\",IF(BH35<30,\"تجديد\",\"ساري\")),\"\")","v":"منتهي"},null,{"$f":"IFERROR(IF(BH35<1,\"منتهي\",IF(BH35<30,\"تجديد\",\"ساري\")),\"\")","v":"منتهي"},null,null,null,null,null,null,null,null,null,null,null,null,null,null,null,null,null,null,null,null,{"$f":"ConvertDate(O37)","v":{"$error":"#VALUE!"}},{"$f":"L34-AS37","v":{"$error":"#VALUE!"}},{"$f":"ConvertDate(Q37)","v":{"$error":"#VALUE!"}},"",{"$f":"ConvertDate(S37)","v":{"$error":"#VALUE!"}},"",null,"",{"$f":"ConvertDate(X37)","v":{"$error":"#VALUE!"}},""]
[null,null,null,null,null,null,null,null,null,null,null,null,null,null,null,"منتهي",null,"منتهي",null,"منتهي",null,"منتهي",null,null,null,null,null,null,null,null,null,null,null,null,null,null,null,null,null,null,null,null,{"$f":"ConvertDate(O38)","v":{"$error":"#VALUE!"}},{"$f":"L35-AS38","v":{"$error":"#VALUE!"}},{"$f":"ConvertDate(Q38)","v":{"$error":"#VALUE!"}},"",{"$f":"ConvertDate(S38)","v":{"$error":"#VALUE!"}},"",null,"",{"$f":"ConvertDate(X38)","v":{"$error":"#VALUE!"}},""]
[null,null,null,null,null,null,null,null,null,null,null,null,null,null,null,"منتهي",null,"منتهي",null,"منتهي",null,"منتهي",null,null,null,null,null,null,null,null,null,null,null,null,null,null,null,null,null,null,null,null,{"$f":"ConvertDate(O39)","v":{"$error":"#VALUE!"}},{"$f":"L36-AS39","v":{"$error":"#VALUE!"}},{"$f":"ConvertDate(Q39)","v":{"$error":"#VALUE!"}},"",{"$f":"ConvertDate(S39)","v":{"$error":"#VALUE!"}},"",null,"",{"$f":"ConvertDate(X39)","v":{"$error":"#VALUE!"}},""]
[null,null,null,null,null,null,null,null,null,null,null,null,null,null,null,"منتهي",null,"منتهي",null,"منتهي",null,"منتهي",null,null,null,null,null,null,null,null,null,null,null,null,null,null,null,null,null,null,null,null,{"$f":"ConvertDate(O40)","v":{"$error":"#VALUE!"}},{"$f":"L37-AS40","v":{"$error":"#VALUE!"}},{"$f":"ConvertDate(Q40)","v":{"$error":"#VALUE!"}},"",{"$f":"ConvertDate(S40)","v":{"$error":"#VALUE!"}},"",null,"",{"$f":"ConvertDate(X40)","v":{"$error":"#VALUE!"}},""]
[null,null,null,null,null,null,null,null,null,null,null,null,null,null,null,"منتهي",null,"منتهي",null,"منتهي",null,"منتهي",null,null,null,null,null,null,null,null,null,null,null,null,null,null,null,null,null,null,null,null,{"$f":"ConvertDate(O41)","v":{"$error":"#VALUE!"}},{"$f":"L38-AS41","v":{"$error":"#VALUE!"}},{"$f":"ConvertDate(Q41)","v":{"$error":"#VALUE!"}},"",{"$f":"ConvertDate(S41)","v":{"$error":"#VALUE!"}},"",null,"",{"$f":"ConvertDate(X41)","v":{"$error":"#VALUE!"}},""]
[null,null,null,null,null,null,null,null,null,null,null,null,null,null,null,"منتهي",null,"منتهي",null,"منتهي",null,"منتهي",null,null,null,null,null,null,null,null,null,null,null,null,null,null,null,null,null,null,null,null,{"$f":"ConvertDate(O42)","v":{"$error":"#VALUE!"}},{"$f":"L39-AS42","v":{"$error":"#VALUE!"}},{"$f":"ConvertDate(Q42)","v":{"$error":"#VALUE!"}},"",{"$f":"ConvertDate(S42)","v":{"$error":"#VALUE!"}},"",null,"",{"$f":"ConvertDate(X42)","v":{"$error":"#VALUE!"}},""]
[null,null,null,null,null,null,null,null,null,null,null,null,null,null,null,"منتهي",null,"منتهي",null,"منتهي",null,"منتهي",null,null,null,null,null,null,null,null,null,null,null,null,null,null,null,null,null,null,null,null,{"$f":"ConvertDate(O43)","v":{"$error":"#VALUE!"}},{"$f":"L40-AS43","v":{"$error":"#VALUE!"}},{"$f":"ConvertDate(Q43)","v":{"$error":"#VALUE!"}},"",{"$f":"ConvertDate(S43)","v":{"$error":"#VALUE!"}},"",null,"",{"$f":"ConvertDate(X43)","v":{"$error":"#VALUE!"}},""]
[null,null,null,null,null,null,null,null,null,null,null,null,null,null,null,"منتهي",null,"منتهي",null,"منتهي",null,"منتهي",null,null,null,null,null,null,null,null,null,null,null,null,null,null,null,null,null,null,null,null,{"$f":"ConvertDate(O44)","v":{"$error":"#VALUE!"}},{"$f":"L41-AS44","v":{"$error":"#VALUE!"}},{"$f":"ConvertDate(Q44)","v":{"$error":"#VALUE!"}},"",{"$f":"ConvertDate(S44)","v":{"$error":"#VALUE!"}},"",null,"",{"$f":"ConvertDate(X44)","v":{"$error":"#VALUE!"}},""]
[null,null,null,null,null,null,null,null,null,null,null,null,null,null,null,"منتهي",null,"منتهي",null,"منتهي",null,"منتهي",null,null,null,null,null,null,null,null,null,null,null,null,null,null,null,null,null,null,null,null,{"$f":"ConvertDate(O45)","v":{"$error":"#VALUE!"}},{"$f":"L42-AS45","v":{"$error":"#VALUE!"}},{"$f":"ConvertDate(Q45)","v":{"$error":"#VALUE!"}},"",{"$f":"ConvertDate(S45)","v":{"$error":"#VALUE!"}},"",null,"",{"$f":"ConvertDate(X45)","v":{"$error":"#VALUE!"}},""]
[null,null,null,null,null,null,null,null,null,null,null,null,null,null,null,"منتهي",null,"منتهي",null,"منتهي",null,"منتهي",null,null,null,null,null,null,null,null,null,null,null,null,null,null,null,null,null,null,null,null,{"$f":"ConvertDate(O46)","v":{"$error":"#VALUE!"}},{"$f":"L43-AS46","v":{"$error":"#VALUE!"}},{"$f":"ConvertDate(Q46)","v":{"$error":"#VALUE!"}},"",{"$f":"ConvertDate(S46)","v":{"$error":"#VALUE!"}},"",null,"",{"$f":"ConvertDate(X46)","v":{"$error":"#VALUE!"}},""]
[null,null,null,null,null,null,null,null,null,null,null,null,null,null,null,"منتهي",null,"منتهي",null,"منتهي",null,"منتهي",null,null,null,null,null,null,null,null,null,null,null,null,null,null,null,null,null,null,null,null,{"$f":"ConvertDate(O47)","v":{"$error":"#VALUE!"}},{"$f":"L44-AS47","v":{"$error":"#VALUE!"}},{"$f":"ConvertDate(Q47)","v":{"$error":"#VALUE!"}},"",{"$f":"ConvertDate(S47)","v":{"$error":"#VALUE!"}},"",null,"",{"$f":"ConvertDate(X47)","v":{"$error":"#VALUE!"}},""]
[null,null,null,null,null,null,null,null,null,null,null,null,null,null,null,"منتهي",null,"منتهي",null,"منتهي",null,"منتهي",null,null,null,null,null,null,null,null,null,null,null,null,null,null,null,null,null,null,null,null,{"$f":"ConvertDate(O48)","v":{"$error":"#VALUE!"}},{"$f":"L45-AS48","v":{"$error":"#VALUE!"}},{"$f":"ConvertDate(Q48)","v":{"$error":"#VALUE!"}},"",{"$f":"ConvertDate(S48)","v":{"$error":"#VALUE!"}},"",null,"",{"$f":"ConvertDate(X48)","v":{"$error":"#VALUE!"}},""]
[null,null,null,null,null,null,null,null,null,null,null,null,null,null,null,"منتهي",null,"منتهي",null,"منتهي",null,"منتهي",null,null,null,null,null,null,null,null,null,null,null,null,null,null,null,null,null,null,null,null,{"$f":"ConvertDate(O49)","v":{"$error":"#VALUE!"}},{"$f":"L46-AS49","v":{"$error":"#VALUE!"}},{"$f":"ConvertDate(Q49)","v":{"$error":"#VALUE!"}},"",{"$f":"ConvertDate(S49)","v":{"$error":"#VALUE!"}},"",null,"",{"$f":"ConvertDate(X49)","v":{"$error":"#VALUE!"}},""]
[null,null,null,null,null,null,null,null,null,null,null,null,null,null,null,"منتهي",null,"منتهي",null,"منتهي",null,"منتهي",null,null,null,null,null,null,null,null,null,null,null,null,null,null,null,null,null,null,null,null,null,{"$f":"L47-AS50","v":{"$error":"#VALUE!"}},{"$f":"ConvertDate(Q50)","v":{"$error":"#VALUE!"}},"",{"$f":"ConvertDate(S50)","v":{"$error":"#VALUE!"}},"",null,"",{"$f":"ConvertDate(X50)","v":{"$error":"#VALUE!"}},""]
[null,null,null,null,null,null,null,null,null,null,null,null,null,null,null,"منتهي",null,"منتهي",null,"منتهي",null,"منتهي",null,null,null,null,null,null,null,null,null,null,null,null,null,null,null,null,null,null,null,null,null,{"$f":"L48-AS51","v":{"$error":"#VALUE!"}},{"$f":"ConvertDate(Q51)","v":{"$error":"#VALUE!"}},"",{"$f":"ConvertDate(S51)","v":{"$error":"#VALUE!"}},"",null,"",{"$f":"ConvertDate(X51)","v":{"$error":"#VALUE!"}},""]
[null,null,null,null,null,null,null,null,null,null,null,null,null,null,null,"منتهي",null,"منتهي",null,"منتهي",null,"منتهي"]
[null,null,null,null,null,null,null,null,null,null,null,null,null,null,null,"منتهي",null,"منتهي",null,"منتهي",null,"منتهي"]
[null,null,null,null,null,null,null,null,null,null,null,null,null,null,null,"منتهي",null,"منتهي",null,"منتهي",null,"منتهي"]
[null,null,null,null,null,null,null,null,null,null,null,null,null,null,null,"منتهي",null,"منتهي",null,"منتهي",null,"منتهي"]
[null,null,null,null,null,null,null,null,null,null,null,null,null,null,null,"منتهي",null,"منتهي",null,"منتهي",null,"منتهي"]
[null,null,null,null,null,null,null,null,null,null,null,null,null,null,null,"منتهي",null,"منتهي",null,"منتهي",null,"منتهي"]
[null,null,null,null,null,null,null,null,null,null,null,null,null,null,null,"منتهي",null,"منتهي",null,"منتهي",null,"منتهي"]
[null,null,null,null,null,null,null,null,null,null,null,null,null,null,null,"منتهي",null,"منتهي",null,"منتهي",null,"منتهي"]
[null,null,null,null,null,null,null,null,null,null,null,null,null,null,null,"منتهي",null,"منتهي",null,"منتهي",null,"منتهي"]
[null,null,null,null,null,null,null,null,null,null,null,null,null,null,null,"منتهي",null,"منتهي",null,"منتهي",null,"منتهي"]
[null,null,null,null,null,null,null,null,null,null,null,null,null,null,null,"منتهي",null,"منتهي",null,"منتهي",null,"منتهي"]
[null,null,null,null,null,null,null,null,null,null,null,null,null,null,null,"منتهي",null,"منتهي",null,"منتهي",null,"منتهي"]
[null,null,null,null,null,null,null,null,null,null,null,null,null,null,null,"منتهي",null,"منتهي",null,"منتهي",null,"منتهي"]
[null,null,null,null,null,null,null,null,null,null,null,null,null,null,null,"منتهي",null,"منتهي",null,"منتهي",null,"منتهي"]
[null,null,null,null,null,null,null,null,null,null,null,null,null,null,null,"منتهي",null,"منتهي",null,"منتهي",null,"منتهي"]
[null,null,null,null,null,null,null,null,null,null,null,null,null,null,null,"منتهي",null,"منتهي",null,"منتهي",null,"منتهي"]
[null,null,null,null,null,null,null,null,null,null,null,null,null,null,null,"منتهي",null,"منتهي",null,"منتهي",null,"منتهي"]
[null,null,null,null,null,null,null,null,null,null,null,null,null,null,null,{"$f":"IF(BF67<1,\"منتهي\",IF(BF67<30,\"تجديد\",IF(BF67=\"\",\"\",\"ساري\")))","v":"منتهي"},null,{"$f":"IF(BG67<1,\"منتهي\",IF(BG67<30,\"تجديد\",IF(BG67=\"\",\"\",\"ساري\")))","v":"منتهي"},null,{"$f":"IFERROR(IF(BH67<1,\"منتهي\",IF(BH67<30,\"تجديد\",\"ساري\")),\"\")","v":"منتهي"},null,{"$f":"IFERROR(IF(BH67<1,\"منتهي\",IF(BH67<30,\"تجديد\",\"ساري\")),\"\")","v":"منتهي"}]
[null,null,null,null,null,null,null,null,null,null,null,null,null,null,null,"منتهي",null,"منتهي",null,"منتهي",null,"منتهي"]
[null,null,null,null,null,null,null,null,null,null,null,null,null,null,null,"منتهي",null,"منتهي",null,"منتهي",null,"منتهي"]
[null,null,null,null,null,null,null,null,null,null,null,null,null,null,null,"منتهي",null,"منتهي",null,"منتهي",null,"منتهي"]
[null,null,null,null,null,null,null,null,null,null,null,null,null,null,null,"منتهي",null,"منتهي",null,"منتهي",null,"منتهي"]
[null,null,null,null,null,null,null,null,null,null,null,null,null,null,null,"منتهي",null,"منتهي",null,"منتهي",null,"منتهي"]
[null,null,null,null,null,null,null,null,null,null,null,null,null,null,null,"منتهي",null,"منتهي",null,"منتهي",null,"منتهي"]
[null,null,null,null,null,null,null,null,null,null,null,null,null,null,null,"منتهي",null,"منتهي",null,"منتهي",null,"منتهي"]
[null,null,null,null,null,null,null,null,null,null,null,null,null,null,null,"منتهي",null,"منتهي",null,"منتهي",null,"منتهي"]
[null,null,null,null,null,null,null,null,null,null,null,null,null,null,null,"منتهي",null,"منتهي",null,"منتهي",null,"منتهي"]
[null,null,null,null,null,null,null,null,null,null,null,null,null,null,null,"منتهي",null,"منتهي",null,"منتهي",null,"منتهي"]
[null,null,null,null,null,null,null,null,null,null,null,null,null,null,null,"منتهي",null,"منتهي",null,"منتهي",null,"منتهي"]
[null,null,null,null,null,null,null,null,null,null,null,null,null,null,null,"منتهي",null,"منتهي",null,"منتهي",null,"منتهي"]
[null,null,null,null,null,null,null,null,null,null,null,null,null,null,null,"منتهي",null,"منتهي",null,"منتهي",null,"منتهي"]
[null,null,null,null,null,null,null,null,null,null,null,null,null,null,null,"منتهي",null,"منتهي",null,"منتهي",null,"منتهي"]
[null,null,null,null,null,null,null,null,null,null,null,null,null,null,null,"منتهي",null,"منتهي",null,"منتهي",null,"منتهي"]
[null,null,null,null,null,null,null,null,null,null,null,null,null,null,null,"منتهي",null,"منتهي",null,"منتهي",null,"منتهي"]
[null,null,null,null,null,null,null,null,null,null,null,null,null,null,null,"منتهي",null,"منتهي",null,"منتهي",null,"منتهي"]
[null,null,null,null,null,null,null,null,null,null,null,null,null,null,null,"منتهي",null,"منتهي",null,"منتهي",null,"منتهي"]
[null,null,null,null,null,null,null,null,null,null,null,null,null,null,null,"منتهي",null,"منتهي",null,"منتهي",null,"منتهي"]
[null,null,null,null,null,null,null,null,null,null,null,null,null,null,null,"منتهي",null,"منتهي",null,"منتهي",null,"منتهي"]
[null,null,null,null,null,null,null,null,null,null,null,null,null,null,null,"منتهي",null,"منتهي",null,"منتهي",null,"منتهي"]
[null,null,null,null,null,null,null,null,null,null,null,null,null,null,null,"منتهي",null,"منتهي",null,"منتهي",null,"منتهي"]
[null,null,null,null,null,null,null,null,null,null,null,null,null,null,null,"منتهي",null,"منتهي",null,"منتهي",null,"منتهي"]
[null,null,null,null,null,null,null,null,null,null,null,null,null,null,null,"منتهي",null,"منتهي",null,"منتهي",null,"منتهي"]
[null,null,null,null,null,null,null,null,null,null,null,null,null,null,null,"منتهي",null,"منتهي",null,"منتهي",null,"منتهي"]
[null,null,null,null,null,null,null,null,null,null,null,null,null,null,null,"منتهي",null,"منتهي",null,"منتهي",null,"منتهي"]
[null,null,null,null,null,null,null,null,null,null,null,null,null,null,null,"منتهي",null,"منتهي",null,"منتهي",null,"منتهي"]
[null,null,null,null,null,null,null,null,null,null,null,null,null,null,null,"منتهي",null,"منتهي",null,"منتهي",null,"منتهي"]
[null,null,null,null,null,null,null,null,null,null,null,null,null,null,null,"منتهي",null,"منتهي",null,"منتهي",null,"منتهي"]
[null,null,null,null,null,null,null,null,null,null,null,null,null,null,null,"منتهي",null,"منتهي",null,"منتهي",null,"منتهي"]
[null,null,null,null,null,null,null,null,null,null,null,null,null,null,null,"منتهي",null,"منتهي",null,"منتهي",null,"منتهي"]
[null,null,null,null,null,null,null,null,null,null,null,null,null,null,null,{"$f":"IF(BF99<1,\"منتهي\",IF(BF99<30,\"تجديد\",IF(BF99=\"\",\"\",\"ساري\")))","v":"منتهي"},null,{"$f":"IF(BG99<1,\"منتهي\",IF(BG99<30,\"تجديد\",IF(BG99=\"\",\"\",\"ساري\")))","v":"منتهي"},null,{"$f":"IFERROR(IF(BH99<1,\"منتهي\",IF(BH99<30,\"تجديد\",\"ساري\")),\"\")","v":"منتهي"},null,{"$f":"IFERROR(IF(BH99<1,\"منتهي\",IF(BH99<30,\"تجديد\",\"ساري\")),\"\")","v":"منتهي"}]
[null,null,null,null,null,null,null,null,null,null,null,null,null,null,null,"منتهي",null,"منتهي",null,"منتهي",null,"منتهي"]
[null,null,null,null,null,null,null,null,null,null,null,null,null,null,null,"منتهي",null,"منتهي",null,"منتهي",null,"منتهي"]
[null,null,null,null,null,null,null,null,null,null,null,null,null,null,null,"منتهي",null,"منتهي",null,"منتهي",null,"منتهي"]
[null,null,null,null,null,null,null,null,null,null,null,null,null,null,null,"منتهي",null,"منتهي",null,"منتهي",null,"منتهي"]
[null,null,null,null,null,null,null,null,null,null,null,null,null,null,null,"منتهي",null,"منتهي",null,"منتهي",null,"منتهي"]
[null,null,null,null,null,null,null,null,null,null,null,null,null,null,null,"منتهي",null,"منتهي",null,"منتهي",null,"منتهي"]
[null,null,null,null,null,null,null,null,null,null,null,null,null,null,null,"منتهي",null,"منتهي",null,"منتهي",null,"منتهي"]
[null,null,null,null,null,null,null,null,null,null,null,null,null,null,null,"منتهي",null,"منتهي",null,"منتهي",null,"منتهي"]
[null,null,null,null,null,null,null,null,null,null,null,null,null,null,null,"منتهي",null,"منتهي",null,"منتهي",null,"منتهي"]
[null,null,null,null,null,null,null,null,null,null,null,null,null,null,null,"منتهي",null,"منتهي",null,"منتهي",null,"منتهي"]
[null,null,null,null,null,null,null,null,null,null,null,null,null,null,null,"منتهي",null,"منتهي",null,"منتهي",null,"منتهي"]
[null,null,null,null,null,null,null,null,null,null,null,null,null,null,null,"منتهي",null,"منتهي",null,"منتهي",null,"منتهي"]
[null,null,null,null,null,null,null,null,null,null,null,null,null,null,null,"منتهي",null,"منتهي",null,"منتهي",null,"منتهي"]
[null,null,null,null,null,null,null,null,null,null,null,null,null,null,null,"منتهي",null,"منتهي",null,"منتهي",null,"منتهي"]
[null,null,null,null,null,null,null,null,null,null,null,null,null,null,null,"منتهي",null,"منتهي",null,"منتهي",null,"منتهي"]
[null,null,null,null,null,null,null,null,null,null,null,null,null,null,null,"منتهي",null,"منتهي",null,"منتهي",null,"منتهي"]
[null,null,null,null,null,null,null,null,null,null,null,null,null,null,null,"منتهي",null,"منتهي",null,"منتهي",null,"منتهي"]
[null,null,null,null,null,null,null,null,null,null,null,null,null,null,null,"منتهي",null,"منتهي",null,"منتهي",null,"منتهي"]
[null,null,null,null,null,null,null,null,null,null,null,null,null,null,null,"منتهي",null,"منتهي",null,"منتهي",null,"منتهي"]
[null,null,null,null,null,null,null,null,null,null,null,null,null,null,null,"منتهي",null,"منتهي",null,"منتهي",null,"منتهي"]
[null,null,null,null,null,null,null,null,null,null,null,null,null,null,null,"منتهي",null,"منتهي",null,"منتهي",null,"منتهي"]
[null,null,null,null,null,null,null,null,null,null,null,null,null,null,null,"منتهي",null,"منتهي",null,"منتهي",null,"منتهي"]
[null,null,null,null,null,null,null,null,null,null,null,null,null,null,null,"منتهي",null,"منتهي",null,"منتهي",null,"منتهي"]
[null,null,null,null,null,null,null,null,null,null,null,null,null,null,null,"منتهي",null,"منتهي",null,"منتهي",null,"منتهي"]
[null,null,null,null,null,null,null,null,null,null,null,null,null,null,null,"منتهي",null,"منتهي",null,"منتهي",null,"منتهي"]
[null,null,null,null,null,null,null,null,null,null,null,null,null,null,null,"منتهي",null,"منتهي",null,"منتهي",null,"منتهي"]
[null,null,null,null,null,null,null,null,null,null,null,null,null,null,null,"منتهي",null,"منتهي",null,"منتهي",null,"منتهي"]
[null,null,null,null,null,null,null,null,null,null,null,null,null,null,null,"منتهي",null,"منتهي",null,"منتهي",null,"منتهي"]
[null,null,null,null,null,null,null,null,null,null,null,null,null,null,null,"منتهي",null,"منتهي",null,"منتهي",null,"منتهي"]
[null,null,null,null,null,null,null,null,null,null,null,null,null,null,null,"منتهي",null,"منتهي",null,"منتهي",null,"منتهي"]
[null,null,null,null,null,null,null,null,null,null,null,null,null,null,null,"منتهي",null,"منتهي",null,"منتهي",null,"منتهي"]
[null,null,null,null,null,null,null,null,null,null,null,null,null,null,null,{"$f":"IF(BF131<1,\"منتهي\",IF(BF131<30,\"تجديد\",IF(BF131=\"\",\"\",\"ساري\")))","v":"منتهي"},null,{"$f":"IF(BG131<1,\"منتهي\",IF(BG131<30,\"تجديد\",IF(BG131=\"\",\"\",\"ساري\")))","v":"منتهي"},null,{"$f":"IFERROR(IF(BH131<1,\"منتهي\",IF(BH131<30,\"تجديد\",\"ساري\")),\"\")","v":"منتهي"},null,{"$f":"IFERROR(IF(BH131<1,\"منتهي\",IF(BH131<30,\"تجديد\",\"ساري\")),\"\")","v":"منتهي"}]
[null,null,null,null,null,null,null,null,null,null,null,null,null,null,null,"منتهي",null,"منتهي",null,"منتهي",null,"منتهي"]
[null,null,null,null,null,null,null,null,null,null,null,null,null,null,null,"منتهي",null,"منتهي",null,"منتهي",null,"منتهي"]
[null,null,null,null,null,null,null,null,null,null,null,null,null,null,null,"منتهي",null,"منتهي",null,"منتهي",null,"منتهي"]
[null,null,null,null,null,null,null,null,null,null,null,null,null,null,null,"منتهي",null,"منتهي",null,"منتهي",null,"منتهي"]
[null,null,null,null,null,null,null,null,null,null,null,null,null,null,null,"منتهي",null,"منتهي",null,"منتهي",null,"منتهي"]
[null,null,null,null,null,null,null,null,null,null,null,null,null,null,null,"منتهي",null,"منتهي",null,"منتهي",null,"منتهي"]
[null,null,null,null,null,null,null,null,null,null,null,null,null,null,null,"منتهي",null,"منتهي",null,"منتهي",null,"منتهي"]
[null,null,null,null,null,null,null,null,null,null,null,null,null,null,null,"منتهي",null,"منتهي",null,"منتهي",null,"منتهي"]
[null,null,null,null,null,null,null,null,null,null,null,null,null,null,null,"منتهي",null,"منتهي",null,"منتهي",null,"منتهي"]
[null,null,null,null,null,null,null,null,null,null,null,null,null,null,null,"منتهي",null,"منتهي",null,"منتهي",null,"منتهي"]
[null,null,null,null,null,null,null,null,null,null,null,null,null,null,null,"منتهي",null,"منتهي",null,"منتهي",null,"منتهي"]
[null,null,null,null,null,null,null,null,null,null,null,null,null,null,null,"منتهي",null,"منتهي",null,"منتهي",null,"منتهي"]
[null,null,null,null,null,null,null,null,null,null,null,null,null,null,null,"منتهي",null,"منتهي",null,"منتهي",null,"منتهي"]
[null,null,null,null,null,null,null,null,null,null,null,null,null,null,null,"منتهي",null,"منتهي",null,"منتهي",null,"منتهي"]
[null,null,"Total",null,null,null,null,null,null,null,null,null,null,null,null,null,null,null,null,null,null,null,null,null,null,null,null,{"$f":"SUBTOTAL(103,Alldata[ملاحظات])","v":1}]
["مسئول الحركة / محمد عامر"]